fUST/lending_fUST_20250701
["ID","MTS","AMOUNT","RATE_DAILY","PERIOD"]
[368749424,1751344261136,-161.028499,0.00020255,2]
[368749425,1751344261146,-500.0,0.00020262,2]
[368749426,1751344261155,-511.41080749,0.00020262,2]
[368749427,1751344261165,-205.72715831,0.00020262,2]
[368749428,1751344261174,-501.54866242,0.00020262,2]
[368749429,1751344261184,-1500.0,0.00020296,2]
[368749430,1751344261194,-774.66075394,0.00020296,2]
[368749431,1751344261204,-971.9089426,0.00020296,2]
[368749432,1751344261213,-1106.27671065,0.00020296,2]
[368749433,1751344261223,-1800.0,0.00020296,2]
[368749434,1751344261234,-1472.29396385,0.00020296,2]
[368749435,1751344261243,-1500.0,0.00020296,2]
[368749436,1751344261253,-151.0,0.000203,4]
[368749437,1751344261263,-583.88090949,0.000203,2]
[368749438,1751344261272,-325.16573376,0.0002035,2]
[368749439,1751344261282,-1987.86,0.00020351,2]
[368749440,1751344261291,-706.49,0.00020351,2]
[368749441,1751344261301,-1636.02,0.00020351,2]
[368749442,1751344261311,-1974.72,0.00020351,2]
[368749443,1751344261322,-460.0,0.00020351,2]
[368749444,1751344261332,-576.47,0.00020351,2]
[368749445,1751344261341,-1802.8,0.00020351,2]
[368749446,1751344261350,-2358.11,0.00020351,2]
[368749447,1751344261360,-460.0,0.00020351,2]
[368749448,1751344261369,-460.0,0.00020351,2]
[368749449,1751344261379,-460.0,0.00020351,2]
[368749450,1751344261389,-1525.05,0.00020351,2]
[368749451,1751344261399,-743.78,0.00020351,2]
[368749452,1751344261408,-1345.14,0.00020351,2]
[368749453,1751344261418,-460.0,0.00020351,2]
[368749454,1751344261430,-460.0,0.00020351,2]
[368749455,1751344261442,-460.0,0.00020351,2]
[368749456,1751344261451,-450.27728455,0.00020352,2]
[368749457,1751344261461,-460.0,0.00020352,2]
[368749458,1751344261471,-460.0,0.00020352,2]
[368749459,1751344261481,-559.95,0.00020352,2]
[368749460,1751344261491,-460.0,0.00020352,2]
[368749461,1751344261500,-460.0,0.00020352,2]
[368749462,1751344261510,-673.34,0.00020352,2]
[368749463,1751344261520,-460.0,0.00020352,2]
[368749464,1751344261530,-1372.82,0.00020352,2]
[368749465,1751344261540,-364.92,0.00020352,2]
[368749466,1751344261549,-460.0,0.00020352,2]
[368749467,1751344261559,-460.0,0.00020352,2]
[368749468,1751344261568,-460.0,0.00020352,2]
[368749469,1751344261578,-680.43,0.00020352,2]
[368749470,1751344261588,-460.0,0.00020352,2]
[368749471,1751344261597,-460.0,0.00020352,2]
[368749472,1751344261607,-151.0,0.00020353,2]
[368749473,1751344261715,-151.0,0.00020353,2]
[368749474,1751344261724,-460.0,0.00020353,2]
[368749475,1751344261735,-460.0,0.00020353,2]
[368749476,1751344261745,-479.01,0.00020353,2]
[368749477,1751344261755,-460.0,0.00020353,2]
[368749478,1751344261765,-477.11,0.00020353,2]
[368749479,1751344261774,-214.72,0.00020353,2]
[368749480,1751344261784,-460.0,0.00020353,2]
[368749481,1751344261794,-460.0,0.00020353,2]
[368749482,1751344261805,-289.33,0.00020353,2]
[368749483,1751344261815,-460.0,0.00020353,2]
[368749484,1751344261824,-294.93716627,0.00020353,2]
[368749485,1751344261834,-1267.78,0.00020353,2]
[368749486,1751344261844,-527.21,0.00020353,2]
[368749487,1751344261853,-1284.89,0.00020353,2]
[368749488,1751344261862,-747.0,0.00020353,2]
[368749489,1751344261872,-1662.44,0.00020353,2]
[368749490,1751344261882,-460.0,0.00020353,2]
[368749491,1751344261892,-756.27,0.00020353,2]
[368749492,1751344261901,-1744.44,0.00020353,2]
[368749493,1751344261911,-460.0,0.00020353,2]
[368749494,1751344261920,-460.0,0.00020353,2]
[368749495,1751344261930,-296.65488374,0.00020353,2]
[368749496,1751344261940,-2986.63,0.00020353,2]
[368749497,1751344261954,-460.0,0.00020354,2]
[368749498,1751344261964,-572.78,0.00020354,2]
[368749499,1751344261973,-460.0,0.00020354,2]
[368749500,1751344261983,-460.0,0.00020354,2]
[368749501,1751344261994,-460.0,0.00020354,2]
[368749502,1751344262003,-509.95,0.00020354,2]
[368749503,1751344262012,-460.0,0.00020354,2]
[368749504,1751344262022,-3961.56,0.00020354,2]
[368749505,1751344262033,-904.9,0.00020354,2]
[368749506,1751344262043,-158.984762,0.00020356,2]
[368749507,1751344262053,-826.0,0.00020359,2]
[368749508,1751344262063,-2500.0,0.00020364,2]
[368749509,1751344262074,-671.531,0.00020417,2]
[368749510,1751344262084,-2151.0,0.00020417,2]
[368749511,1751344262094,-420.262,0.00020417,2]
[368749512,1751344262104,-424.076,0.00020417,2]
[368749513,1751344262115,-826.0,0.00020446,2]
[368749514,1751344262124,-845.718,0.00020471,2]
[368749515,1751344262134,-114909.3701171,0.000205,4]
[368749516,1751344262143,-151.0,0.000205,2]
[368749517,1751344262152,-151.0,0.000205,2]
[368749518,1751344262162,-151.0,0.000205,2]
[368749519,1751344262171,-151.0,0.000205,2]
[368749520,1751344262182,-151.0,0.000205,2]
[368749521,1751344262191,-151.0,0.000205,2]
[368749522,1751344262200,-151.0,0.000205,2]
[368749523,1751344262210,-151.0,0.000205,2]
[368749524,1751344262221,-151.0,0.000205,2]
[368749525,1751344262231,-151.0,0.000205,2]
[368749526,1751344262242,-151.0,0.000205,2]
[368749527,1751344262252,-151.0,0.000205,2]
[368749528,1751344262261,-151.0,0.000205,2]
[368749529,1751344262271,-279.064128,0.000205,2]
[368749530,1751344262281,-151.0,0.000205,2]
[368749531,1751344262291,-151.0,0.000205,2]
[368749532,1751344262301,-151.0,0.000205,2]
[368749533,1751344262310,-151.0,0.000205,2]
[368749534,1751344262320,-151.0,0.000205,2]
[368749535,1751344262331,-370.006665,0.000205,2]
[368749536,1751344262342,-370.006665,0.000205,2]
[368749537,1751344262351,-151.0,0.000205,2]
[368749538,1751344262361,-206.329157,0.000205,2]
[368749539,1751344262372,-154.222511,0.000205,2]
[368749540,1751344262382,-151.0,0.000205,2]
[368749541,1751344262392,-206.329157,0.000205,2]
[368749542,1751344262401,-151.0,0.000205,2]
[368749543,1751344262411,-151.0,0.000205,2]
[368749544,1751344262420,-151.0,0.000205,2]
[368749545,1751344262430,-222.430805,0.000205,2]
[368749546,1751344262440,-222.430805,0.000205,2]
[368749547,1751344262450,-195.336888,0.000205,2]
[368749548,1751344262459,-151.0,0.000205,2]
[368749549,1751344262469,-195.336888,0.000205,2]
[368749550,1751344262478,-171.39148,0.000205,2]
[368749551,1751344262488,-171.39148,0.000205,2]
[368749552,1751344262498,-151.0,0.000205,2]
[368749553,1751344262509,-151.0,0.000205,2]
[368749554,1751344262519,-227.449851,0.000205,2]
[368749555,1751344262529,-163.672659,0.000205,2]
[368749556,1751344262539,-163.672659,0.000205,2]
[368749557,1751344262549,-151.0,0.000205,2]
[368749558,1751344262558,-156.7,0.00020524,4]
[368749559,1751344262567,-500.0,0.00020547,14]
[368749560,1751344262577,-500.0,0.00020547,14]
[368749561,1751344262587,-500.0,0.00020588,2]
[368749562,1751344262596,-500.0,0.00020588,2]
[368749563,1751344262606,-151.0,0.000206,4]
[368749564,1751344262616,-1000.0,0.00020621,5]
[368749565,1751344262625,-1987.86,0.00020625,2]
[368749566,1751344262635,-706.49,0.00020625,2]
[368749567,1751344262644,-1636.02,0.00020625,2]
[368749568,1751344262654,-1974.72,0.00020625,2]
[368749569,1751344262663,-460.0,0.00020625,2]
[368749570,1751344262673,-1802.8,0.00020625,2]
[368749571,1751344262682,-2358.11,0.00020625,2]
[368749572,1751344262692,-167.41271875,0.00020625,2]
[368749573,1751344262702,-533.19,0.00020625,2]
[368749574,1751344262712,-460.0,0.00020625,2]
[368749575,1751344262722,-1525.05,0.00020625,2]
[368749576,1751344262731,-743.78,0.00020625,2]
[368749577,1751344262741,-1345.14,0.00020625,2]
[368749578,1751344262752,-218.75262594,0.00020625,2]
[368749579,1751344262761,-460.0,0.00020625,2]
[368749580,1751344262771,-460.0,0.00020625,2]
[368749581,1751344262781,-460.0,0.00020626,2]
[368749582,1751344262791,-460.0,0.00020626,2]
[368749583,1751344262800,-460.0,0.00020626,2]
[368749584,1751344262810,-460.0,0.00020626,2]
[368749585,1751344262819,-673.34,0.00020626,2]
[368749586,1751344262828,-606.78,0.00020626,2]
[368749587,1751344262838,-1372.82,0.00020626,2]
[368749588,1751344262848,-460.0,0.00020626,2]
[368749589,1751344262857,-460.0,0.00020626,2]
[368749590,1751344262867,-460.0,0.00020626,2]
[368749591,1751344262878,-680.43,0.00020626,2]
[368749592,1751344262889,-460.0,0.00020626,2]
[368749593,1751344262899,-458.54,0.00020626,2]
[368749594,1751344262909,-151.0,0.00020627,2]
[368749595,1751344262918,-152.706343,0.00020627,2]
[368749596,1751344262928,-417.25,0.00020627,2]
[368749597,1751344262937,-460.0,0.00020627,2]
[368749598,1751344262950,-460.0,0.00020627,2]
[368749599,1751344262960,-539.89,0.00020627,2]
[368749600,1751344262970,-342.85,0.00020627,2]
[368749601,1751344262980,-1267.78,0.00020627,2]
[368749602,1751344262990,-1284.89,0.00020627,2]
[368749603,1751344263000,-747.0,0.00020627,2]
[368749604,1751344263009,-1662.44,0.00020627,2]
[368749605,1751344263019,-460.0,0.00020627,2]
[368749606,1751344263113,-756.27,0.00020627,2]
[368749607,1751344263135,-1744.44,0.00020627,2]
[368749608,1751344263146,-460.0,0.00020627,2]
[368749609,1751344263156,-460.0,0.00020627,2]
[368749610,1751344263166,-2986.63,0.00020627,2]
[368749611,1751344263176,-460.0,0.00020628,2]
[368749612,1751344263186,-460.0,0.00020628,2]
[368749613,1751344263196,-460.0,0.00020628,2]
[368749614,1751344263207,-460.0,0.00020628,2]
[368749615,1751344263217,-509.95,0.00020628,2]
[368749616,1751344263227,-460.0,0.00020628,2]
[368749617,1751344263237,-3961.56,0.00020628,2]
[368749618,1751344263247,-904.9,0.00020628,2]
[368749619,1751344263258,-150.0,0.00020651,2]
[368749620,1751344263268,-1000.0,0.00020695,2]
[368749621,1751344263278,-1003.14841377,0.00020695,2]
[368749622,1751344263287,-1000.0,0.00020695,2]
[368749623,1751344263297,-3144.14,0.000207,2]
[368749624,1751344263307,-826.0,0.00020782,2]
[368749625,1751344263317,-160.0,0.000208,3]
[368749626,1751344263327,-1000.0,0.00020809,2]
[368749627,1751344263337,-153.0,0.00020822,2]
[368749628,1751344263347,-318.6364371,0.00020822,2]
[368749629,1751344263357,-1150.4390784,0.00020822,2]
[368749630,1751344263367,-159.3450821,0.00020822,2]
[368749631,1751344263377,-575.5050994,0.00020822,2]
[368749632,1751344263386,-282.5065103,0.00020822,2]
[368749633,1751344263396,-159.3450821,0.00020822,2]
[368749634,1751344263407,-159.3450821,0.00020822,2]
[368749635,1751344263417,-156.7,0.0002084,4]
[368749636,1751344263426,-2000.0,0.00020844,2]
[368749637,1751344263436,-2400.0,0.00020844,2]
[368749638,1751344263446,-503.63925753,0.00020844,2]
[368749639,1751344263456,-1987.86,0.00020899,2]
[368749640,1751344263466,-706.49,0.00020899,2]
[368749641,1751344263476,-1636.02,0.00020899,2]
[368749642,1751344263486,-1974.72,0.00020899,2]
[368749643,1751344263496,-460.0,0.00020899,2]
[368749644,1751344263506,-1802.8,0.00020899,2]
[368749645,1751344263516,-2358.11,0.00020899,2]
[368749646,1751344263526,-308.46,0.00020899,2]
[368749647,1751344263536,-1525.05,0.00020899,2]
[368749648,1751344263546,-743.78,0.00020899,2]
[368749649,1751344263555,-1345.14,0.00020899,2]
[368749650,1751344263565,-460.0,0.00020899,2]
[368749651,1751344263574,-460.0,0.00020899,2]
[368749652,1751344263584,-460.0,0.000209,2]
[368749653,1751344263594,-460.0,0.000209,2]
[368749654,1751344263603,-460.0,0.000209,2]
[368749655,1751344263613,-460.0,0.000209,2]
[368749656,1751344263623,-673.34,0.000209,2]
[368749657,1751344263632,-1372.82,0.000209,2]
[368749658,1751344263643,-460.0,0.000209,2]
[368749659,1751344263652,-460.0,0.000209,2]
[368749660,1751344263662,-460.0,0.000209,2]
[368749661,1751344263672,-680.43,0.000209,2]
[368749662,1751344263682,-460.0,0.000209,2]
[368749663,1751344263691,-460.0,0.00020901,2]
[368749664,1751344263701,-460.0,0.00020901,2]
[368749665,1751344263710,-1267.78,0.00020901,2]
[368749666,1751344263720,-1284.89,0.00020901,2]
[368749667,1751344263731,-747.0,0.00020901,2]
[368749668,1751344263740,-1662.44,0.00020901,2]
[368749669,1751344263750,-460.0,0.00020901,2]
[368749670,1751344263760,-756.27,0.00020901,2]
[368749671,1751344263770,-1744.44,0.00020901,2]
[368749672,1751344263780,-460.0,0.00020901,2]
[368749673,1751344263791,-519.88056851,0.00020901,2]
[368749674,1751344263801,-2986.63,0.00020901,2]
[368749675,1751344263810,-460.0,0.00020902,2]
[368749676,1751344263820,-460.0,0.00020902,2]
[368749677,1751344263830,-460.0,0.00020902,2]
[368749678,1751344263840,-460.0,0.00020902,2]
[368749679,1751344263850,-509.95,0.00020902,2]
[368749680,1751344263860,-460.0,0.00020902,2]
[368749681,1751344263871,-3961.56,0.00020902,2]
[368749682,1751344263881,-904.9,0.00020902,2]
[368749683,1751344263891,-307.518305,0.00020904,2]
[368749684,1751344263902,-3000.0,0.00020912,2]
[368749685,1751344263911,-169.28,0.00020997,2]
[368749686,1751344263921,-3000.0,0.00021,2]
[368749687,1751344263931,-10000.0,0.00021,5]
[368749688,1751344263941,-4594.75728316,0.00021,7]
[368749689,1751344264484,-7772.73095642,0.00021,7]
[368749690,1751344265391,-165.75952447,0.0001806,2]
[368749691,1751344265401,-213.36770623,0.0001806,2]
[368749692,1751344265413,-286.63229377,0.0001806,2]
[368749693,1751344265423,-500.0,0.0001806,2]
[368749694,1751344265432,-484.95429073,0.0001806,2]
[368749695,1751344265442,-50.99334756,0.0001806,2]
[368749696,1751344266045,-460.0,0.0001806,2]
[368749697,1751344266054,-449.00665244,0.0001806,2]
[368749698,1751344266063,-500.0,0.0001806,2]
[368749699,1751344266073,-439.56654935,0.0001806,2]
[368749700,1751344266082,-500.0,0.0001806,2]
[368749701,1751344266091,-500.0,0.0001806,2]
[368749702,1751344266102,-500.0,0.0001806,2]
[368749703,1751344266111,-500.0,0.0001806,2]
[368749704,1751344266121,-500.0,0.0001806,2]
[368749705,1751344266131,-500.0,0.0001806,2]
[368749706,1751344266141,-460.0,0.00018159,2]
[368749707,1751344266151,-460.0,0.00018159,2]
[368749708,1751344266161,-460.0,0.00018159,2]
[368749709,1751344266172,-460.0,0.00018159,2]
[368749710,1751344266181,-460.0,0.0001816,2]
[368749711,1751344266191,-460.0,0.0001816,2]
[368749712,1751344266201,-460.0,0.0001816,2]
[368749713,1751344266211,-460.0,0.00018162,2]
[368749714,1751344266220,-460.0,0.00018334,2]
[368749715,1751344266229,-460.0,0.00018433,2]
[368749716,1751344266238,-193.09273131,0.00018433,2]
[368749717,1751344266248,-460.0,0.00018433,2]
[368749718,1751344266258,-460.0,0.00018433,2]
[368749719,1751344266267,-460.0,0.00018434,2]
[368749720,1751344266277,-460.0,0.00018434,2]
[368749721,1751344266287,-151.0,0.00018437,2]
[368749722,1751344266297,-474.57,0.00018706,2]
[368749723,1751344266306,-460.0,0.00018707,2]
[368749724,1751344266316,-460.0,0.00018707,2]
[368749725,1751344266325,-460.0,0.00018707,2]
[368749726,1751344266335,-460.0,0.00018708,2]
[368749727,1751344266344,-460.0,0.00018708,2]
[368749728,1751344266353,-460.0,0.00018981,2]
[368749729,1751344266362,-151.0,0.00018981,2]
[368749730,1751344266371,-460.0,0.00018981,2]
[368749731,1751344266381,-460.0,0.00018982,2]
[368749732,1751344266391,-460.0,0.00018982,2]
[368749733,1751344266400,-969.81,0.00018984,2]
[368749734,1751344266410,-607.04305732,0.00019255,2]
[368749735,1751344266419,-571.83225832,0.00019255,2]
[368749736,1751344266429,-460.0,0.00019256,2]
[368749737,1751344266439,-460.0,0.00019256,2]
[368749738,1751344266449,-152.325602,0.00019257,2]
[368749739,1751344266459,-969.81,0.00019258,2]
[368749740,1751344266469,-460.0,0.0001953,2]
[368749741,1751344266478,-460.0,0.0001953,2]
[368749742,1751344266488,-969.81,0.00019532,2]
[368749743,1751344266498,-460.0,0.00019804,2]
[368749744,1751344266507,-484.47,0.00019804,2]
[368749745,1751344266517,-969.81,0.00019806,2]
[368749746,1751344266526,-974.80245215,0.000199,2]
[368749747,1751344266535,-966.0,0.00020033,2]
[368749748,1751344266545,-974.80245186,0.00020072,2]
[368749749,1751344266555,-460.0,0.00020078,2]
[368749750,1751344266564,-969.81,0.0002008,2]
[368749751,1751344266574,-974.80245186,0.00020245,2]
[368749752,1751344266584,-460.0,0.00020352,2]
[368749753,1751344266593,-969.81,0.00020354,2]
[368749754,1751344266694,-974.80245186,0.00020417,3]
[368749755,1751344266704,-974.80245186,0.0002059,3]
[368749756,1751344266714,-460.0,0.00020626,2]
[368749757,1751344266723,-969.81,0.00020628,2]
[368749758,1751344266733,-974.80245186,0.00020762,3]
[368749759,1751344266743,-460.0,0.000209,2]
[368749760,1751344266752,-969.81,0.00020902,2]
[368749761,1751344266762,-974.80245186,0.00020934,4]
[368749762,1751344266771,-74784.4897502,0.00021,7]
[368749763,1751344266782,-151.0,0.00021,2]
[368749764,1751344266791,-160.0,0.00021,7]
[368749765,1751344266802,-151.0,0.00021,2]
[368749766,1751344266812,-163.672659,0.00021,2]
[368749767,1751344266822,-163.672659,0.00021,2]
[368749768,1751344266831,-151.0,0.00021,2]
[368749769,1751344266842,-3000.0,0.0002101,2]
[368749770,1751344266852,-215.0738,0.00021018,2]
[368749771,1751344266861,-3000.0,0.0002102,2]
[368749772,1751344266871,-3000.0,0.0002103,2]
[368749773,1751344266881,-3000.0,0.0002104,2]
[368749774,1751344266891,-826.0,0.00021049,2]
[368749775,1751344266900,-3000.0,0.0002105,2]
[368749776,1751344266910,-3000.0,0.0002106,2]
[368749777,1751344266920,-3000.0,0.0002107,2]
[368749778,1751344266929,-3000.0,0.0002108,2]
[368749779,1751344266939,-3000.0,0.0002109,2]
[368749780,1751344266951,-500.0,0.00021095,15]
[368749781,1751344266961,-3000.0,0.000211,2]
[368749782,1751344266971,-974.80245186,0.00021107,4]
[368749783,1751344266980,-3000.0,0.0002111,2]
[368749784,1751344266991,-3000.0,0.0002112,2]
[368749785,1751344267001,-161.028499,0.0002112,3]
[368749786,1751344267010,-3831.978616,0.0002113,2]
[368749787,1751344267022,-506.83788749,0.00021136,2]
[368749788,1751344267031,-520.72169797,0.00021136,2]
[368749789,1751344267042,-826.0,0.00021151,2]
[368749790,1751344267052,-156.7,0.00021156,5]
[368749791,1751344267061,-1987.86,0.00021173,2]
[368749792,1751344267072,-706.49,0.00021173,2]
[368749793,1751344267082,-1636.02,0.00021173,2]
[368749794,1751344267091,-1974.72,0.00021173,2]
[368749795,1751344267101,-460.0,0.00021173,2]
[368749796,1751344267111,-1802.8,0.00021173,2]
[368749797,1751344267121,-2358.11,0.00021173,2]
[368749798,1751344267130,-1525.05,0.00021173,2]
[368749799,1751344267139,-743.78,0.00021173,2]
[368749800,1751344267149,-1345.14,0.00021173,2]
[368749801,1751344267159,-460.0,0.00021173,2]
[368749802,1751344267169,-460.0,0.00021173,2]
[368749803,1751344267179,-460.0,0.00021174,2]
[368749804,1751344267188,-182.64229552,0.00021174,2]
[368749805,1751344267198,-592.62553976,0.00021174,2]
[368749806,1751344267207,-673.34,0.00021174,2]
[368749807,1751344267217,-1372.82,0.00021174,2]
[368749808,1751344267226,-249.50627823,0.00021174,2]
[368749809,1751344267237,-460.0,0.00021174,2]
[368749810,1751344267247,-460.0,0.00021174,2]
[368749811,1751344267257,-680.43,0.00021174,2]
[368749812,1751344267267,-282.49,0.00021174,2]
[368749813,1751344267276,-460.0,0.00021174,2]
[368749814,1751344267287,-460.0,0.00021175,2]
[368749815,1751344267297,-460.0,0.00021175,2]
[368749816,1751344267306,-1267.78,0.00021175,2]
[368749817,1751344267315,-1284.89,0.00021175,2]
[368749818,1751344267325,-747.0,0.00021175,2]
[368749819,1751344267334,-1662.44,0.00021175,2]
[368749820,1751344267346,-460.0,0.00021175,2]
[368749821,1751344267356,-756.27,0.00021175,2]
[368749822,1751344267366,-1744.44,0.00021175,2]
[368749823,1751344267376,-460.0,0.00021175,2]
[368749824,1751344267387,-2986.63,0.00021175,2]
[368749825,1751344267397,-460.0,0.00021176,2]
[368749826,1751344267416,-151.0,0.00021176,2]
[368749827,1751344267431,-151.0,0.00021176,2]
[368749828,1751344267443,-151.0,0.00021176,2]
[368749829,1751344267456,-151.0,0.00021176,2]
[368749830,1751344267467,-151.0,0.00021176,2]
[368749831,1751344267477,-370.006665,0.00021176,2]
[368749832,1751344267487,-370.006665,0.00021176,2]
[368749833,1751344267497,-151.0,0.00021176,2]
[368749834,1751344267507,-206.329157,0.00021176,2]
[368749835,1751344267517,-151.0,0.00021176,2]
[368749836,1751344267528,-151.0,0.00021176,2]
[368749837,1751344267538,-206.329157,0.00021176,2]
[368749838,1751344267548,-151.0,0.00021176,2]
[368749839,1751344267559,-460.0,0.00021176,2]
[368749840,1751344267570,-151.0,0.00021176,2]
[368749841,1751344267580,-460.0,0.00021176,2]
[368749842,1751344267590,-567.83680431,0.00021176,2]
[368749843,1751344267600,-509.95,0.00021176,2]
[368749844,1751344267611,-460.0,0.00021176,2]
[368749845,1751344267620,-3961.56,0.00021176,2]
[368749846,1751344267631,-904.9,0.00021176,2]
[368749847,1751344267641,-969.81,0.00021176,2]
[368749848,1751344267652,-151.0,0.00021177,2]
[368749849,1751344267663,-151.0,0.00021177,2]
[368749850,1751344267673,-151.0,0.00021177,2]
[368749851,1751344267683,-222.430805,0.00021177,2]
[368749852,1751344267693,-222.430805,0.00021177,2]
[368749853,1751344267703,-195.336888,0.00021177,2]
[368749854,1751344267713,-195.336888,0.00021177,2]
[368749855,1751344267723,-171.39148,0.00021177,2]
[368749856,1751344267733,-171.39148,0.00021177,2]
[368749857,1751344267743,-151.0,0.00021242,2]
[368749858,1751344267857,-151.0,0.00021242,2]
[368749859,1751344267872,-289.167901,0.00021242,2]
[368749860,1751344267883,-502.7291266,0.00021243,2]
[368749861,1751344267893,-501.19866919,0.00021243,2]
[368749862,1751344267903,-500.0,0.0002126,2]
[368749863,1751344267913,-974.80245186,0.00021279,5]
[368749864,1751344267923,-826.0,0.00021317,2]
[368749865,1751344267932,-826.0,0.00021339,2]
[368749866,1751344267943,-3985.51498101,0.00021349,2]
[368749867,1751344267956,-1500.0,0.00021357,2]
[368749868,1751344267966,-2500.0,0.00021392,2]
[368749869,1751344267976,-3000.0,0.00021392,2]
[368749870,1751344267986,-160.0,0.000214,4]
[368749871,1751344267996,-151.0,0.000214,2]
[368749872,1751344268011,-563.56729474,0.00021414,2]
[368749873,1751344268022,-501.02336889,0.00021414,2]
[368749874,1751344268032,-1987.86,0.00021447,2]
[368749875,1751344268043,-706.49,0.00021447,2]
[368749876,1751344268052,-1636.02,0.00021447,2]
[368749877,1751344268063,-1974.72,0.00021447,2]
[368749878,1751344268073,-460.0,0.00021447,2]
[368749879,1751344268084,-1802.8,0.00021447,2]
[368749880,1751344268094,-2358.11,0.00021447,2]
[368749881,1751344268104,-1525.05,0.00021447,2]
[368749882,1751344268114,-743.78,0.00021447,2]
[368749883,1751344268126,-1345.14,0.00021447,2]
[368749884,1751344268136,-575.71,0.00021447,2]
[368749885,1751344268146,-460.0,0.00021447,2]
[368749886,1751344268157,-460.0,0.00021448,2]
[368749887,1751344268166,-673.34,0.00021448,2]
[368749888,1751344268176,-1372.82,0.00021448,2]
[368749889,1751344268186,-460.0,0.00021448,2]
[368749890,1751344268196,-252.52,0.00021448,2]
[368749891,1751344268207,-680.43,0.00021448,2]
[368749892,1751344268217,-566.48,0.00021448,2]
[368749893,1751344268228,-151.755154,0.00021449,2]
[368749894,1751344268239,-151.0,0.00021449,2]
[368749895,1751344268249,-151.0,0.00021449,2]
[368749896,1751344268259,-151.0,0.00021449,2]
[368749897,1751344268270,-460.0,0.00021449,2]
[368749898,1751344268279,-460.0,0.00021449,2]
[368749899,1751344268289,-1267.78,0.00021449,2]
[368749900,1751344268299,-1284.89,0.00021449,2]
[368749901,1751344268309,-747.0,0.00021449,2]
[368749902,1751344268318,-1662.44,0.00021449,2]
[368749903,1751344268330,-460.0,0.00021449,2]
[368749904,1751344268340,-756.27,0.00021449,2]
[368749905,1751344268351,-1744.44,0.00021449,2]
[368749906,1751344268360,-460.0,0.00021449,2]
[368749907,1751344268387,-2986.63,0.00021449,2]
[368749908,1751344268409,-151.0,0.0002145,2]
[368749909,1751344268431,-151.0,0.0002145,2]
[368749910,1751344268456,-361.87,0.0002145,2]
[368749911,1751344268477,-152.477671,0.0002145,2]
[368749912,1751344268503,-151.0,0.0002145,2]
[368749913,1751344268522,-151.0,0.0002145,2]
[368749914,1751344268541,-151.0,0.0002145,2]
[368749915,1751344268563,-460.0,0.0002145,2]
[368749916,1751344268583,-460.0,0.0002145,2]
[368749917,1751344268607,-509.95,0.0002145,2]
[368749918,1751344268622,-460.0,0.0002145,2]
[368749919,1751344268646,-3961.56,0.0002145,2]
[368749920,1751344268663,-904.9,0.0002145,2]
[368749921,1751344268681,-969.81,0.0002145,2]
[368749922,1751344268698,-974.80245186,0.00021452,5]
[368749923,1751344268717,-3500.0,0.0002146,2]